[Event "1st FIDE Olympiad DIS 2023"]
[Site "Belgrade"]
[Date "2023.02.02"]
[Round "4.1"]
[White "Ibraimov, Kubanychbek"]
[Black "Bozinovic, Bogdan"]
[Result "0-1"]
[ECO "B50"]
[WhiteElo "1316"]
[BlackElo "2131"]
[Annotator "TA"]
[PlyCount "94"]
[EventDate "2023.01.30"]
[EventType "team-tourn"]
[EventCountry "SRB"]
[SourceTitle "playchess.com"]
[Source "ChessBase"]
[SourceQuality "1"]
[WhiteTeam "Kyrgyzstan"]
[BlackTeam "Croatia"]
[WhiteTeamCountry "KGZ"]
[BlackTeamCountry "CRO"]
[TimeControl "40/5400+30:1800+30"]

{[%evp 14,94,-12,-15,-4,-19,-10,-18,-27,-26,0,-12,-14,-50,-18,-21,0,-6,-4,-15,-2,0,14,-118,-107,-122,-2,-6,-12,-93,75,60,54,52,110,26,27,-135,-130,-167,-157,-326,-343,-312,-272,-294,-246,-346,-341,-402,-410,-393,-341,-379,-413,-437,-424,-441,-396,-407,-383,-599,-569,-594,-576,-564,-546,-667,-667,-1112,-1091,-6190,-6135,-5181,-983,-29979,-29980,-29980,-29979,-29979,-29980,-29989,-29990]} 1. e4 {[%emt 0:00:06]} c5 {[%emt 0:00:46]} 2. Nf3 {[%emt 0:00:15]} Nf6 {[%emt 0:00:38]} 3. Nc3 {[%emt 0:00:27]} d6 {[%emt 0:00:22]} 4. Bc4 {[%emt 0:00:17]} e6 {[%emt 0:00:25]} 5. d3 {[%emt 0:00:53]} a6 {[%emt 0:00:35]} 6. a4 {[%emt 0:00:22]} Be7 {[%emt 0:01:16]} 7. O-O {[%emt 0:01:03]} Nc6 {[%emt 0:00:28]} 8. Re1 $1 {[%emt 0:00:40]} Qc7 {[%emt 0:01:40] B50: Sicilian: 2...d6, Miscellaneous.} 9. Bg5 {[%emt 0:01:19]} O-O {[%emt 0:00:39]} 10. Bh4 {[%emt 0:01:06]} b6 {[%emt 0:01:13] The position is equal.} 11. Bg3 {[%emt 0:00:40] [#]} Ne5 $146 {[%emt 0:00:32]} ({Predecessor:} 11... Bb7 12. e5 dxe5 13. Bxe5 Nxe5 14. Nxe5 Bd6 15. f4 Nd5 16. Nxd5 exd5 17. Bb3 f6 {0-1 Sowka,F-Klementys,J (1884) Chorzow op 2008 (2)}) 12. Nd2 {[%emt 0:02:09]} Bb7 {[%emt 0:02:14]} 13. f4 {[%emt 0:00:26]} Nxc4 {[%emt 0:00:36]} 14. Nxc4 {[%emt 0:00:20]} d5 {[%emt 0:03:32]} 15. exd5 {[%emt 0:01:51]} exd5 {[%emt 0:00:45]} 16. Nxb6 {[%emt 0:08:20][%mdl 64] Deflection} Rae8 {[%emt 0:02:13]} 17. a5 {[%emt 0:00:44]} Bd6 {[%emt 0:03:42]} 18. Rf1 {[%emt 0:09:00]} (18. Qf3 $11) 18... d4 $17 {[%emt 0:04:14][%mdl 1024] Black has strong compensation.} 19. Nca4 {[%emt 0:00:54] [#]} g6 {[%emt 0:01:54] Black is more active.} (19... g5 $1 $17 {White must now prevent ...Kh8.} 20. Qd2 Nh5) 20. Nc4 $11 {[%emt 0:00:26]} Nd5 {[%emt 0:05:05][%cal Rd5f4]} 21. Nab6 {[%emt 0:05:49]} (21. Nxd6 $11 {remains equal.} Qxd6 22. Nb6) 21... Qc6 $2 {[%emt 0:04:00]} (21... Nxf4 $17 {and life is bright.} 22. Nxd6 Ne2+ 23. Kf2 Qc6) 22. Nxd5 {[%emt 0:01:08]} Qxd5 {[%emt 0:00:13][%csl Gb7][%cal Rd5g2]} 23. Qd2 {[%emt 0:00:47][%cal Of4f5]} Bc7 {[%emt 0:01:50]} (23... f5 $14) 24. Rae1 {[%emt 0:00:50]} ({White should try} 24. f5 $1 $16 Bxg3 25. hxg3) 24... f5 {[%emt 0:02:06]} 25. Ne5 $2 {[%emt 0:02:37] [#]} (25. h3 $11) 25... Bxa5 $1 $40 {[%emt 0:00:42][%mdl 704] Deflection. White is in trouble. This pair of bishops is nice.} 26. c3 {[%emt 0:01:14] [#]} (26. Qf2 Bxe1) 26... dxc3 $1 {[%emt 0:00:10]} 27. bxc3 {[%emt 0:00:32] [#] Now White is beyond hope.} (27. Qc2 $17) 27... Bxc3 $1 $19 {[%emt 0:00:09][%mdl 512]} 28. Qc2 {[%emt 0:01:06]} Bxe1 {[%emt 0:07:53]} 29. Rxe1 {[%emt 0:00:27]} Rb8 {[%emt 0:00:16]} 30. Nf3 {[%emt 0:04:01]} (30. h4 $142) 30... Rfe8 {[%emt 0:00:42]} 31. Rc1 {[%emt 0:01:48]} Re3 {[%emt 0:01:39]} 32. Ne5 {[%emt 0:03:19]} Re8 {[%emt 0:03:43]} 33. Qc4 {[%emt 0:06:24]} Re2 {[%emt 0:02:18]} 34. Qxd5+ {[%emt 0:00:13]} Bxd5 {[%emt 0:00:12]} 35. Nd7 {[%emt 0:07:05]} R8e6 {[%emt 0:03:24] Against Nf6+} ({Stronger than} 35... Bxg2 36. Nf6+ Kf8 37. Nxe8 Kxe8 38. Rxc5 $17) (35... Rxg2+ $2 36. Kf1 Kg7 37. Rxc5 $19) 36. Rxc5 {[%emt 0:00:34]} Rc6 {[%emt 0:02:27]} (36... Bxg2 $2 {too greedy.} 37. Bf2 Re7 38. Rc8+ Kg7 39. Ne5 $19) (36... Rxg2+ $2 {perishes.} 37. Kf1 Bb7 38. Rc7) 37. d4 {[%emt 0:01:11]} (37. Kf1 $142 Rxc5 38. Kxe2 Rc2+ 39. Ke3 Bxg2 40. Be1) 37... Rxc5 {[%emt 0:00:40]} 38. dxc5 {[%emt 0:00:08][%mdl 4096] Endgame KRB-KBN} Kf7 {[%emt 0:01:18] Prevents Nf6} 39. Bf2 {[%emt 0:00:21]} Rc2 {[%emt 0:00:17] ...Rc1+ would be deadly.} 40. h4 {[%emt 0:00:22]} a5 {[%emt 0:00:17] Strongly threatening ...a4.} 41. h5 {[%emt 0:32:25]} gxh5 {[%emt 0:30:44][%cal Bg6h5,Bh5h4,Bh4h3][%mdl 32]} 42. Bd4 {[%emt 0:00:29]} Rxg2+ {[%emt 0:01:15]} 43. Kf1 {[%emt 0:00:05]} Rc2 {[%emt 0:00:19] ( -> ...h4)} 44. Ke1 {[%emt 0:00:15]} h4 {[%emt 0:00:24] Black mates.} 45. Kd1 {[%emt 0:00:02]} Be4 {[%emt 0:00:32]} 46. Nf6 {[%emt 0:00:12]} Rc4 {[%emt 0:00:00]} 47. Ba1 {[%emt 0:04:18]} h3 {[%emt 0:01:02] Weighted Error Value: White=0.75/Black=0.31} 0-1

[Event "1st FIDE Olympiad DIS 2023"]
[Site "Belgrade"]
[Date "2023.02.02"]
[Round "4.2"]
[White "Molenda, Marcin"]
[Black "Lopez, Henry"]
[Result "1-0"]
[ECO "D15"]
[WhiteElo "2381"]
[BlackElo "2102"]
[Annotator "TA"]
[PlyCount "106"]
[EventDate "2023.01.30"]
[EventType "team-tourn"]
[EventCountry "SRB"]
[SourceTitle "playchess.com"]
[Source "ChessBase"]
[SourceQuality "1"]
[WhiteTeam "Poland"]
[BlackTeam "Philippines"]
[WhiteTeamCountry "POL"]
[BlackTeamCountry "PHI"]
[TimeControl "40/5400+30:1800+30"]

{[%evp 10,106,36,29,31,27,41,58,57,24,52,47,52,48,63,64,83,29,70,34,99,62,48,60,70,63,73,23,16,21,23,28,13,0,7,0,16,0,0,0,0,0,0,0,0,0,0,0,0,0,60,0,10,0,66,45,44,22,25,17,44,27,25,4,27,29,77,19,63,15,17,17,5,0,0,0,0,0,29962,29963,29966,29966,29966,29968,29967,29970,29971,29972,29969,29969,29971,29972,29968,29959,29978,29979,29978,29979,12838]} 1. d4 {[%emt 0:00:03]} d5 {[%emt 0:00:14]} 2. c4 {[%emt 0:00:13]} c6 {[%emt 0:00:23]} 3. Nc3 {[%emt 0:00:14]} Nf6 {[%emt 0:00:28]} 4. e3 {[%emt 0:00:05]} a6 {[%emt 0:01:59]} 5. Nf3 {[%emt 0:00:58]} Bf5 {[%emt 0:00:28]} 6. Qb3 {[%emt 0:01:11]} Ra7 {[%emt 0:00:24] D15: Slav Defence: 4 Nc3 a6 and gambit lines after 4 Nc3 dxc4.} 7. Nh4 {[%emt 0:04:18]} Be4 {[%emt 0:08:21]} 8. f3 {[%emt 0:01:34]} Bg6 {[%emt 0:00:36] White is slightly better.} 9. Bd2 {[%emt 0:04:56]} e6 {[%emt 0:00:23]} 10. Nxg6 {[%emt 0:01:39]} hxg6 {[%emt 0:00:06]} 11. c5 {[%emt 0:14:50]} Nbd7 {[%emt 0:00:23] [#]} 12. Be2 $146 {[%emt 0:06:22]} ({Predecessor:} 12. Na4 Be7 13. O-O-O Qb8 14. g3 e5 15. Be2 Nf8 16. Be1 exd4 17. exd4 Ne6 18. Kb1 {1-0 Murshed,N (2419)-Abu Sufian,S (2229) BAN-chT Premier 2022 (10.5)}) 12... e5 {[%emt 0:01:42]} 13. O-O-O {[%emt 0:00:43]} ({Better is} 13. Na4 $16) 13... Be7 {[%emt 0:00:42]} 14. Kb1 {[%emt 0:01:16]} Qc7 {[%emt 0:00:45]} (14... exd4 $1 $14 15. exd4 Nf8) 15. g3 {[%emt 0:07:30]} O-O {[%emt 0:01:58]} 16. Na4 {[%emt 0:00:10]} a5 {[%emt 0:00:57]} 17. Bc3 {[%emt 0:03:41] dxe5 would be deadly. White is more active.} e4 {[%emt 0:03:03]} 18. f4 {[%emt 0:00:41]} (18. g4 $16) 18... Rb8 $1 $11 {[%emt 0:00:11]} 19. Rc1 {[%emt 0:03:03]} b5 {[%emt 0:09:21]} 20. cxb6 {[%emt 0:00:09]} Nxb6 {[%emt 0:00:09][%cal Ob6c4]} 21. Qc2 {[%emt 0:01:59]} Nxa4 {[%emt 0:05:42]} 22. Qxa4 {[%emt 0:00:06]} Qb6 {[%emt 0:00:10]} 23. Rc2 {[%emt 0:00:41]} c5 {[%emt 0:08:42]} 24. dxc5 {[%emt 0:01:24]} Bxc5 {[%emt 0:00:27]} 25. Be5 {[%emt 0:01:49] This pair of bishops is nice.} Rf8 {[%emt 0:06:18]} 26. Rxc5 {[%emt 0:25:50]} Qxc5 {[%emt 0:00:20]} 27. Bd4 {[%emt 0:00:02]} Qe7 {[%emt 0:00:52]} 28. Bxa7 {[%emt 0:02:41]} Qxa7 {[%emt 0:00:11]} 29. Qd4 {[%emt 0:00:25]} Qd7 {[%emt 0:02:12]} (29... Qxd4 $11 30. exd4 Rb8) 30. h3 {[%emt 0:03:37]} (30. Rc1 $14) 30... Rb8 {[%emt 0:03:36]} 31. a3 {[%emt 0:00:11]} Rb3 {[%emt 0:15:44]} ({Black should try} 31... Nh5 $11) 32. g4 {[%emt 0:01:00]} (32. Ka2 $5 {[%cal Ra2b3]} a4 33. Rc1 $11) 32... Qb7 $1 {[%emt 0:00:53]} 33. Ka2 {[%emt 0:00:42]} a4 $1 {[%emt 0:06:46]} 34. Rd1 {[%emt 0:01:30][%cal Bh1d1,Bd1d2,Bd2c2,Bc2c5][%mdl 32] aiming for Rd2.} Nd7 {[%emt 0:00:49]} 35. Rd2 {[%emt 0:00:48] Hoping for Bd1.} (35. Ka1 {simplifies} Qc6 36. Qxd5 Qxd5 37. Rxd5 Rxe3 38. Bb5) 35... Nb6 $1 {[%emt 0:03:07]} 36. Rc2 {[%emt 0:01:23]} Qd7 {[%emt 0:04:33]} 37. Rc5 {[%emt 0:07:31]} Kh7 {[%emt 0:02:19]} (37... Kh8 $11) 38. h4 {[%emt 0:02:00]} (38. Kb1 $1 $16) 38... Kg8 {[%emt 0:01:04]} (38... Qe6 {feels hotter.} 39. Rb5 Nc4 40. f5 gxf5 41. Bxc4 dxc4 42. gxf5 Qh6) 39. Qe5 {[%emt 0:00:41]} (39. Rc1 $14 {is more appropriate.}) 39... Qe6 {[%emt 0:08:35]} 40. Qxe6 {[%emt 0:01:57]} fxe6 {[%emt 0:00:05]} 41. Rc3 {[%emt 0:30:15]} Rxc3 {[%emt 0:32:12]} 42. bxc3 {[%emt 0:00:00][%mdl 4096] Endgame KB-KN} e5 {[%emt 0:00:00]} 43. Kb2 {[%emt 0:00:00]} Nc4+ $2 {[%emt 0:00:00][%mdl 8192]} (43... Kf7 $11) 44. Bxc4 {[%emt 0:00:00][%mdl 64] Remove Defender. White mates.} dxc4 {[%emt 0:00:00] KP-KP} 45. Kc2 {[%emt 0:00:00]} ({Inferior is} 45. fxe5 Kf7 $11) 45... Kf7 {[%emt 0:00:00]} 46. Kd2 {[%emt 0:00:00]} ({Not} 46. fxe5 Ke6 $11) 46... Ke6 {[%emt 0:00:00]} 47. Ke2 {[%emt 0:00:00]} Kf6 {[%emt 0:00:00]} 48. Kf2 {[%emt 0:00:00]} Ke6 {[%emt 0:00:00] [#]} 49. Kg2 $1 {[%emt 0:00:00]} Kf6 {[%emt 0:00:00]} 50. Kg3 {[%emt 0:00:00]} Ke6 {[%emt 0:00:00] [#]} 51. h5 $1 {[%emt 0:00:00]} Kf6 {[%emt 0:08:16]} 52. fxe5+ {[%emt 0:00:00]} Kxe5 {[%emt 0:00:23]} 53. hxg6 {[%emt 0:00:00]} Kd5 {[%emt 0:00:28] Weighted Error Value: White=0.11 (very precise) /Black=0.25 (precise)} 1-0

[Event "1st FIDE Olympiad DIS 2023"]
[Site "Belgrade"]
[Date "2023.02.02"]
[Round "4.2"]
[White "Glazar, Domagoj"]
[Black "Arstanbekov, Dzhanysh"]
[Result "1-0"]
[ECO "E71"]
[WhiteElo "2119"]
[BlackElo "1621"]
[Annotator "TA"]
[PlyCount "59"]
[EventDate "2023.01.30"]
[EventType "team-tourn"]
[EventCountry "SRB"]
[SourceTitle "playchess.com"]
[Source "ChessBase"]
[SourceQuality "1"]
[WhiteTeam "Croatia"]
[BlackTeam "Kyrgyzstan"]
[WhiteTeamCountry "CRO"]
[BlackTeamCountry "KGZ"]
[TimeControl "40/5400+30:1800+30"]

{[%evp 11,59,26,30,30,52,3,10,0,83,64,87,68,94,66,189,104,165,149,149,135,130,83,108,87,363,173,173,170,225,238,248,240,546,541,774,783,1318,1301,1232,1128,1321,1289,1906,1821,1845,1818,1802,1766,29979,29980]} 1. d4 {[%emt 0:01:30]} Nf6 {[%emt 0:00:29]} 2. c4 {[%emt 0:00:50]} g6 {[%emt 0:00:47]} 3. Nc3 {[%emt 0:00:30]} Bg7 {[%emt 0:00:03]} 4. e4 {[%emt 0:00:14]} d6 {[%emt 0:00:19]} 5. h3 {[%emt 0:00:29]} O-O {[%emt 0:02:26]} 6. Be3 {[%emt 0:00:14]} c6 {[%emt 0:00:27]} 7. Qd2 {[%emt 0:00:56] E71: King's Indian: 4 e4 d6 5 h3.} Re8 {[%emt 0:00:49] [#]} 8. g4 $146 {[%emt 0:00:45]} (8. Rd1 $14) ({Predecessor:} 8. f4 Nh5 9. Qf2 e5 10. fxe5 dxe5 11. d5 f5 12. exf5 gxf5 13. Be2 Nf6 14. O-O-O cxd5 15. Nxd5 {1-0 Sokolski,A (1868)-Zadrapa,R (2060) Vsetin op 2017 (2)}) 8... e5 $11 {[%emt 0:02:36]} 9. d5 {[%emt 0:00:58] The position is equal.} cxd5 {[%emt 0:00:57]} (9... b5 $1 $11 {remains equal.}) 10. cxd5 $16 {[%emt 0:00:15]} a6 {[%emt 0:03:07]} 11. a4 {[%emt 0:04:15][%cal Ba2a4,Ba4b5,Bb5a6][%mdl 32]} Qa5 {[%emt 0:04:54]} 12. f3 {[%emt 0:01:14]} b5 {[%emt 0:05:08]} 13. Nge2 {[%emt 0:09:21]} (13. axb5 $2 Qxa1+ 14. Qc1 axb5 15. Bxb5 Bd7 $19) (13. b4 $1 $18 {[%cal Rb4a5]} Qd8 14. axb5) 13... Nbd7 {[%emt 0:02:49] [#]} (13... b4 $16 {was worth a try.}) 14. b4 $1 $18 {[%emt 0:06:40][%mdl 512]} Qxb4 {[%emt 0:05:13] [#]} 15. axb5 $1 {[%emt 0:09:14]} Nc5 {[%emt 0:00:30] Wards off Ra4} 16. Nc1 {[%emt 0:00:45]} (16. Qa2 $142 {Rb1 would be deadly.} Qb3 17. Bxc5 Qxa2 18. Rxa2 dxc5 19. Nc1) 16... Bb7 {[%emt 0:05:53]} 17. bxa6 {[%emt 0:01:20]} Bc8 $2 {[%emt 0:02:32][%mdl 8192]} (17... Bxa6 $16 18. Bxc5 Qxc5 19. Rxa6 (19. Bxa6 Bh6 $11) 19... Bh6 20. Qxh6 (20. g5 Bxg5 21. Qxg5 Qxc3+ 22. Kf2 Qb2+ 23. Ke1 Qc3+ 24. Kf2 Qb2+ 25. Ke1 Qc3+ 26. Kf2 $11) 20... Qxc3+ 21. Qd2 Qxf3 22. Rxa8 Rxa8) 18. Nb5 {[%emt 0:04:26]} (18. Nd3 $142 Qb6 19. Nxc5 dxc5 20. Na4) 18... Qxd2+ {[%emt 0:06:57]} 19. Kxd2 {[%emt 0:00:55]} Nfxe4+ {[%emt 0:10:06]} (19... Bxa6 $142 20. Nxd6 Bxf1) 20. fxe4 {[%emt 0:00:38]} Nxe4+ {[%emt 0:00:02]} 21. Ke1 {[%emt 0:01:50]} ({And not} 21. Kd3 Ng3 22. Kd2 (22. Nxd6 Rd8 $15) 22... Bxa6 23. Rxa6 Rxa6 $15) 21... Ng3 $2 {[%emt 0:00:34]} (21... Rxa6 22. Rxa6 {[%mdl 64] Remove Defender} Bxa6) 22. Nc7 {[%emt 0:01:09]} Nxf1 {[%emt 0:05:48]} 23. Rxf1 {[%emt 0:00:23]} Bd7 {[%emt 0:00:42]} 24. Nxa8 {[%emt 0:01:11]} Rxa8 {[%emt 0:00:02]} 25. a7 {[%emt 0:00:25] Rb1 is the strong threat.} f5 {[%emt 0:07:06]} 26. Rb1 {[%emt 0:00:41] Intending Rb8+ and mate.} Bf8 {[%emt 0:01:25]} 27. Rb8 {[%emt 0:00:25]} Rxa7 {[%emt 0:00:02]} 28. Bxa7 {[%emt 0:00:48]} f4 {[%emt 0:00:22]} 29. Rf2 {[%emt 0:01:03]} g5 {[%emt 0:00:12]} 30. Rc2 {[%emt 0:00:17] Weighted Error Value: White=0.34/Black=1.10} 1-0

[Event "1st FIDE Olympiad DIS 2023"]
[Site "Belgrade"]
[Date "2023.02.02"]
[Round "4.3"]
[White "Infiesto, James"]
[Black "Piekielny, Pawel"]
[Result "0-1"]
[ECO "C02"]
[WhiteElo "1930"]
[BlackElo "2230"]
[Annotator "TA"]
[PlyCount "138"]
[EventDate "2023.01.30"]
[EventType "team-tourn"]
[EventCountry "SRB"]
[SourceTitle "playchess.com"]
[Source "ChessBase"]
[SourceQuality "1"]
[WhiteTeam "Philippines"]
[BlackTeam "Poland"]
[WhiteTeamCountry "PHI"]
[BlackTeamCountry "POL"]
[TimeControl "40/5400+30:1800+30"]

{[%evp 12,138,1,-9,0,-10,-16,-6,15,-14,-12,-20,-15,-10,-15,-20,-11,-20,-20,-20,-13,-26,0,0,17,0,0,0,8,0,0,-12,6,-26,-23,-22,-22,-22,-24,-26,-19,-19,0,0,63,-11,-11,-12,-8,-142,-41,-147,-41,-154,-35,-85,-7,-8,-11,-23,0,0,0,0,0,0,0,-12,-17,-9,-25,-21,-18,-14,-14,-44,-38,-41,-41,-64,-62,-106,-136,-117,-119,-146,-110,-126,-122,-218,-218,-220,-218,-291,-218,-210,-218,-218,-218,-209,-193,-397,-395,-420,-420,-463,-464,-451,-457,-612,-612,-612,-612,-585,-585,-1040,-431,-489,-467,-887,-631,-4133,-2265,-29988,-29989,-29989,-29990,-29993,-29994]} 1. e4 {[%emt 0:00:03]} e6 {[%emt 0:00:11]} 2. d4 {[%emt 0:00:12]} d5 {[%emt 0:00:04]} 3. e5 {[%emt 0:01:14]} c5 {[%emt 0:00:04]} 4. c3 {[%emt 0:00:02]} Nc6 {[%emt 0:00:06]} 5. Nf3 {[%emt 0:00:03]} Bd7 {[%emt 0:00:12]} 6. Be2 {[%emt 0:00:27]} Nge7 {[%emt 0:00:26]} 7. a3 {[%emt 0:00:23]} c4 {[%emt 0:01:47] C02: French: Advance Variation.} 8. O-O {[%emt 0:00:20]} Na5 {[%emt 0:00:07]} 9. Nbd2 {[%emt 0:00:20]} Nc8 {[%emt 0:01:23] The position is equal.} 10. Qe1 {[%emt 0:04:16]} Ba4 {[%emt 0:00:34]} 11. Bd1 {[%emt 0:00:31]} Qd7 {[%emt 0:00:09]} 12. Rb1 {[%emt 0:07:55] [#]} Be7 $146 {[%emt 0:04:44]} ({Predecessor:} 12... Nb6 13. h3 Bxd1 14. Qxd1 Qa4 15. Qe2 Be7 16. Ne1 h5 17. f4 g6 18. g3 O-O-O {0-1 Benedetti,J (2291)-Rodriguez Vila,A (2477) Neuquen Patagonia op 1st 2015 (4)}) 13. h4 {[%emt 0:02:14]} Nb6 {[%emt 0:01:12]} 14. g3 {[%emt 0:03:38]} h6 {[%emt 0:05:00]} 15. Kg2 {[%emt 0:01:21]} O-O-O {[%emt 0:00:44][%cal Be8c8,Bc8b8,Bb8a8][%mdl 32]} 16. Rh1 {[%emt 0:02:08]} Kb8 {[%emt 0:02:25]} 17. Nf1 {[%emt 0:03:43]} h5 {[%emt 0:16:27]} 18. Bf4 {[%emt 0:01:10]} Ka8 {[%emt 0:00:37]} 19. N1d2 {[%emt 0:10:20]} Rde8 {[%emt 0:03:44]} 20. Qe2 {[%emt 0:03:41]} Bd8 {[%emt 0:04:15]} 21. Re1 {[%emt 0:01:42]} f6 {[%emt 0:05:52]} 22. exf6 {[%emt 0:12:01]} gxf6 {[%emt 0:00:17]} 23. Bxa4 {[%emt 0:01:30]} Nxa4 {[%emt 0:01:32]} 24. Nf1 {[%emt 0:01:03]} Nb6 {[%emt 0:01:56]} 25. Qc2 {[%emt 0:01:31]} Nc8 {[%emt 0:05:10]} 26. Re2 {[%emt 0:00:24]} Ne7 {[%emt 0:06:48]} 27. Rbe1 {[%emt 0:00:31]} Nf5 {[%emt 0:01:52]} (27... Nec6 $1 $11) 28. Ne3 {[%emt 0:01:57]} (28. Rxe6 $1 $14 Nxh4+ 29. Nxh4 Rxe6 30. Qf5) 28... Ng7 $11 {[%emt 0:06:21]} 29. Nf1 {[%emt 0:03:14]} Nc6 {[%emt 0:04:13]} 30. Qa4 {[%emt 0:00:46]} (30. Kg1 $11) 30... Rhg8 {[%emt 0:00:39]} (30... e5 $1 $17 {[%cal Re5f4]} 31. dxe5 fxe5) 31. N1d2 {[%emt 0:00:56]} (31. Qd1 $15) 31... Nf5 {[%emt 0:03:33]} (31... e5 $1 $17 {[%cal Re5f4]} 32. dxe5 fxe5) 32. Qc2 {[%emt 0:02:47] [#]} (32. Kh2 $1 $15) 32... Re7 {[%emt 0:06:54]} ({Better is} 32... e5 $1 $17 {...Ref8 is the strong threat.} 33. dxe5 fxe5 34. Bxe5 (34. Nxe5 $2 Nxh4+ 35. Kh2 Nxe5 $19) 34... Nxh4+ 35. Nxh4 Bxh4) 33. Nf1 {[%emt 0:01:03] [#]} (33. Kh2 $1 $15) 33... Nd6 {[%emt 0:03:40]} (33... e5 $1 $17 {[%cal Re5f4]} 34. dxe5 fxe5 35. Bxe5 Rf7) 34. Bxd6 {[%emt 0:00:35]} Qxd6 {[%emt 0:00:05]} 35. Qd2 {[%emt 0:00:23]} Rg6 {[%emt 0:02:49] Prevents Qh6} 36. Qc2 {[%emt 0:05:31]} Rg4 {[%emt 0:02:04]} 37. Qd2 {[%emt 0:00:53] Hoping for Qh6.} Rg6 {[%emt 0:04:34] Wards off Qh6} 38. Qc2 {[%emt 0:00:09]} Rg8 {[%emt 0:01:28]} 39. Qd2 {[%emt 0:00:04]} Qd7 {[%emt 0:00:55]} 40. Qh6 {[%emt 0:04:05]} Rh7 {[%emt 0:03:26] Inhibits Qxf6.} 41. Qd2 {[%emt 0:31:46]} Re8 {[%emt 0:31:30]} 42. Qc2 {[%emt 0:02:54][%cal Oe2e6] Threatens to win with Rxe6!} Rg7 {[%emt 0:00:00]} 43. Qd2 {[%emt 0:00:00]} Qf7 {[%emt 0:00:00]} 44. N1h2 {[%emt 0:00:00]} Bc7 {[%emt 0:00:00]} 45. Kh1 {[%emt 0:00:00]} a6 {[%emt 0:00:00]} 46. Ng1 {[%emt 0:00:00] Black converts the advantage convincingly.} e5 {[%emt 0:00:00] Black is more active.} 47. dxe5 {[%emt 0:00:00]} fxe5 {[%emt 0:00:00]} 48. Nh3 {[%emt 0:00:00]} Rd8 {[%emt 0:00:00]} 49. Ng5 {[%emt 0:00:00]} Qf6 {[%emt 0:00:00]} 50. Re3 {[%emt 0:00:00]} (50. f4 $17 {might work better.}) 50... e4 $19 {[%emt 0:00:00]} 51. f4 {[%emt 0:00:00]} Bb6 {[%emt 0:00:00]} 52. R3e2 {[%emt 0:00:00]} Ne7 {[%emt 0:00:00][%cal Bc6e7,Be7f5,Bf5d4][%mdl 32]} 53. Nf1 {[%emt 0:00:00]} Nf5 {[%emt 0:00:00] Wards off Ne3} 54. Rg2 {[%emt 0:00:00]} Re7 {[%emt 0:00:00]} 55. Qd1 {[%emt 0:00:00]} Qg6 {[%emt 0:00:00]} 56. b3 $2 {[%emt 0:00:00]} (56. a4 {was worth a try.}) 56... d4 {[%emt 0:00:00]} 57. cxd4 {[%emt 0:00:00]} Nxd4 {[%emt 0:00:55]} (57... Rxd4 $2 {loses.} 58. Qc2 $19) 58. Qb1 {[%emt 0:00:00]} c3 {[%emt 0:01:09] And now ...Qc6 would win.} (58... cxb3 $2 {too greedy.} 59. Ne3 $19) 59. Ne3 {[%emt 0:00:00]} Qc6 {[%emt 0:01:59] ...Nf3 would be deadly.} 60. Rc1 {[%emt 0:00:00]} Nf3 {[%emt 0:01:53]} 61. Nc4 {[%emt 0:00:13]} Nxg5 {[%emt 0:00:46]} 62. fxg5 {[%emt 0:01:13]} e3 {[%emt 0:02:44] Strongly threatening ...Bc7.} 63. Kh2 {[%emt 0:07:47]} Bd4 {[%emt 0:00:54]} (63... Bc7 $142 {White must now prevent ...e2.} 64. Qc2 b5 {[%mdl 64] Trapped Piece} 65. Qxc3 bxc4 66. Qxc4 Qxc4 67. bxc4 Re4) 64. Rcc2 {[%emt 0:05:26]} Qe4 {[%emt 0:00:24]} 65. Qc1 {[%emt 0:01:37]} (65. Qf1 $142 b5 66. Nxe3) 65... b5 {[%emt 0:00:32]} 66. Na5 {[%emt 0:01:14]} Be5 {[%emt 0:00:04] ( -> ...Red7). White is weak on the dark squares} 67. Rce2 {[%emt 0:01:45]} Qxh4+ {[%emt 0:00:49] Black mates.} 68. Kg1 {[%emt 0:00:01]} Bxg3 {[%emt 0:00:29]} 69. Qf1 {[%emt 0:02:59] [#]} Rf7 $3 {[%emt 0:01:27][%mdl 576] Deflection. Artfully played by Piekielny.   Weighted Error Value: White=0.29 (precise) /Black=0.17 (very precise)} 0-1